Cogmind - Beta 15 @@@ ROGUE MODE // 2025.07.25 @ 13:37:40 Player: AshCrow Result: Destroyed by P-80 Master with Gamma Rifle Performance ------------- Evolutions (7) 3500 Regions Visited (12) 2400 Robots Destroyed (27) 135 Value Destroyed (1042) 1042 Prototype IDs (19) 380 Alien Tech Used (0) 0 Bonus (800) 800 TOTAL SCORE: 8257 Bonus ------- Registered with UFD 300 Met Optimus in HQ 500 Cogmind --------- Core Integrity 0/1300 Matter 224/300 Energy 70/100 System Corruption 5% Temperature Cool (0) Movement Core (50) Location -3/Research Parts ------- > --- POWER (4) -------- (None) > --- PROPULSION (7) --- (None) > --- UTILITY (6) ------ (None) > --- WEAPON (4) ------- (None) > --- INVENTORY (5) ---- Light Antimatter Reactor Light Particle Reactor Improved Corruption Screen Mass Driver Peak State ------------ > --- POWER ------------ Light Antimatter Reactor Light Antimatter Reactor Light Particle Reactor > --- PROPULSION ------- Gyrokinetic Inverter Gyrokinetic Inverter Linear Gravjet Linear Gravjet Linear Gravjet > --- UTILITY ---------- Advanced Power Amplifier Advanced Power Amplifier Small Storage Unit IFF Parser Advanced Reaction Control System > --- WEAPON ----------- Mass Driver > --- INVENTORY -------- Carbon-fiber Leg Improved Antigrav System Improved Corruption Screen Heavy Shock Bomb Launcher Improved Remote Datajack Ripper [Rating: 88] Favorites ----------- Power Deuterium Engine Engine Deuterium Engine Power Core Nuclear Core Reactor Light Antimatter Reactor Propulsion Improved Flight Unit Leg Aluminum Leg Hover Unit Gyrokinetic Inverter Flight Unit Improved Flight Unit Utility Small Storage Unit Device Advanced Power Amplifier Storage Small Storage Unit Processor A0-MCA's Component Scanner Hackware System Shield Protection Scrap Shield Weapon Assault Rifle Energy Gun Medium Laser Energy Cannon Heavy Plasma Cannon Ballistic Gun Assault Rifle Ballistic Cannon Mass Driver Launcher Heavy Shock Bomb Launcher Special Weapon Improved Remote Datajack Slashing Weapon Ripper Build | -11 -10 -10 -8 -8 -6 -5 -5 -5 -5 -5 -4 -3 ------- Run | Yrd Mat Sub Rec Scr Fac Fac Was Fac Upp Upp Fac Res Slots Evolved 14 | . . . . . 8 2 . . . . 2 2 Power 3 | . . . . . 2 1 . . . . . . Propulsion 5 | . . . . . 2 1 . . . . 1 1 Utility 4 | . . . . . 2 . . . . . 1 1 Weapon 2 | . . . . . 2 . . . . . . . Parts Attached 51 | 7 2 1 . 3 7 5 2 7 2 1 9 5 Power 7 | 1 . . . 2 . . 1 . . . 1 2 Engine 2 | 1 . . . 1 . . . . . . . . Core 1 | . . . . 1 . . . . . . . . Reactor 4 | . . . . . . . 1 . . . 1 2 Propulsion 15 | 2 2 . . . 3 1 . 3 . . 3 1 Treads . | . . . . . . . . . . . . . Leg 4 | 2 . . . . 1 1 . . . . . . Wheel . | . . . . . . . . . . . . . Hover 6 | . . . . . . . . 2 . . 3 1 Flight 5 | . 2 . . . 2 . . 1 . . . . Utility 18 | 1 . 1 . 1 2 3 . 3 1 1 4 1 Device 10 | . . . . . 1 1 . 1 1 1 4 1 Storage 1 | 1 . . . . . . . . . . . . Processor 4 | . . . . 1 1 1 . 1 . . . . Hackware 1 | . . . . . . . . 1 . . . . Protection 2 | . . 1 . . . 1 . . . . . . Artifact . | . . . . . . . . . . . . . Weapon 11 | 3 . . . . 2 1 1 1 1 . 1 1 Energy Gun 1 | 1 . . . . . . . . . . . . Energy Cannon 1 | . . . . . . . 1 . . . . . Ballistic Gun 4 | 2 . . . . 2 . . . . . . . Ballistic Cannon 1 | . . . . . . . . 1 . . . . Launcher 1 | . . . . . . . . . . . . 1 Special Weapon 2 | . . . . . . 1 . . . . 1 . Impact Weapon . | . . . . . . . . . . . . . Slashing Weapon 1 | . . . . . . . . . 1 . . . Piercing Weapon . | . . . . . . . . . . . . . Special Melee Weapon . | . . . . . . . . . . . . . Unidentified Prototypes 1 | . 1 . . . . . . . . . . . Parts Lost 27 | . . . . . 11 . 3 . . . . 13 Power 2 | . . . . . 1 . . . . . . 1 Propulsion 10 | . . . . . 5 . 1 . . . . 4 Utility 7 | . . . . . 1 . . . . . . 6 Weapon 8 | . . . . . 4 . 2 . . . . 2 Highest Loss Streak 13 | . . . . . 11 . 3 . . . . 13 To Critical Strikes 1 | . . . . . 1 . . . . . . . Average Backups 4 | 1 3 3 4 4 3 3 3 3 3 6 6 6 Power . | . 1 1 1 . . . . . . . . 1 Propulsion 1 | . 1 2 2 2 . . . . . 1 1 . Utility 1 | . . . 1 1 1 2 3 3 1 2 1 1 Weapon 1 | . 1 . . . . 1 . . 1 2 3 2 Tool/Special . | . . . . . . . . . . . . . Unused Backups 10 | . . . . 2 . 1 . . . . 2 5 Power 1 | . . . . 1 . . . . . . . . Propulsion 1 | . . . . . . . . . . . . 1 Utility 5 | . . . . 1 . . . . . . 2 2 Weapon 1 | . . . . . . . . . . . . 1 Tool/Special 2 | . . . . . . 1 . . . . . 1 Average Slot Usage (%) 58 | . 85 83 71 79 72 13 14 14 32 39 57 34 Engine 5 | . 14 14 14 14 5 . . . . . . . Hover 5 | . . . . . . . . 1 11 11 25 13 Flight 14 | . 25 28 28 28 24 . . . . . . . Device 5 | . . . . . 5 4 2 2 4 9 19 11 Storage 2 | . 14 1 . . . . . . 4 5 5 2 Processor 4 | . . . . 8 12 2 2 2 . . . . Hackware 1 | . . . . . . . . 4 5 5 . . Ballistic Gun 14 | . 28 28 28 28 21 . . . . . . . Peak Build Rating 88 | 6 10 13 10 21 42 23 34 29 27 33 79 88 Average Rating 28 | 4 9 12 9 16 36 15 13 14 24 31 65 45 On Entrance 17 | . 6 10 9 10 21 1 23 1 17 27 33 74 Naked Turns 211 | . . . . . 42 13 57 3 . . . 96 Heaviest Build 50 | 14 14 27 9 13 20 6 32 11 14 15 36 50 Greatest Support 49 | 20 20 10 10 10 20 16 16 22 22 11 49 49 Greatest Overweight (x) 4 | . 2 2 . 1 . 1 1 3 1 1 4 2 Average Overweight (x) . | . . . . . . . . . . 1 . . Largest Inventory Capacity 8 | 8 8 8 5 5 5 5 5 5 8 8 8 8 Average Capacity 6 | 7 8 5 5 5 5 5 5 5 7 8 8 6 Most Carried 8 | 2 4 4 5 5 5 5 5 5 6 8 8 8 Average Carried 4 | . 3 3 4 4 4 4 4 4 4 7 6 6 Final Capacity 8 | 8 8 5 5 5 5 5 5 5 8 8 8 5 Final Carried 8 | 2 3 4 5 5 5 5 4 5 6 8 8 4 Class Distribution -------------------- 74% | Mutant 24% | Sprinter Dominant Class ---------------- Mutant | -10/Materials Mutant | -10/Subcaves Mutant | -8/Recycling Mutant | -8/Scraptown Sprinter | -6/Factory Mutant | -5/Factory Mutant | -5/Waste Mutant | -5/Factory Mutant | -5/Upper Caves Mutant | -5/Upper Caves Mutant | -4/Factory Mutant | -3/Research Resources | -11 -10 -10 -8 -8 -6 -5 -5 -5 -5 -5 -4 -3 ----------- Run | Yrd Mat Sub Rec Scr Fac Fac Was Fac Upp Upp Fac Res Matter Collected 1312 | 187 . 90 . 85 502 . 88 . 161 62 137 . Remotely . | . . . . . . . . . . . . . Salvage Created 1249 | . . 37 . . 656 . 346 . . . 60 150 Parts 43 | . . 5 . . 25 . 3 . . . 4 6 Haulers Intercepted 1 | . . . . . 1 . . . . . . . Recyclers Shooed 2 | . . . . . 2 . . . . . . . Parts Field Recycled . | . . . . . . . . . . . . . Retrieved Matter . | . . . . . . . . . . . . . Parts Self-Destructed 12 | . . 10 . . . . . . 2 . . . Prevented . | . . . . . . . . . . . . . Kills | -11 -10 -10 -8 -8 -6 -5 -5 -5 -5 -5 -4 -3 ------- Run | Yrd Mat Sub Rec Scr Fac Fac Was Fac Upp Upp Fac Res Combat Hostiles Destroyed 22 | . . 3 . . 13 . 1 . . . 3 2 Melee 2 | . . . . . . . . . . . . 2 Guns 12 | . . 3 . . 9 . . . . . . . Cannons 3 | . . . . . . . . . . . 3 . AOE 4 | . . . . . 4 . . . . . . . Classes Destroyed 9 | . . 1 . . 7 . 1 . . . . . Worker 1 | . . . . . 1 . . . . . . . Builder 3 | . . . . . 3 . . . . . . . Hauler 1 | . . . . . 1 . . . . . . . Swarmer 8 | . . 3 . . 3 . . . . . 2 . Grunt 9 | . . . . . 7 . . . . . . 2 Brawler 1 | . . . . . 1 . . . . . . . Protector 1 | . . . . . 1 . . . . . . . Programmer 2 | . . . . . 1 . . . . . 1 . Compactor 1 | . . . . . . . 1 . . . . . Best Kill Streak 9 | . . 3 . . 9 . 1 . . . 2 2 Combat Bots Only 5 | . . 3 . . 5 . 1 . . . 2 2 Max Kills in Single Turn 6 | . . 1 . . 6 . 1 . . . 1 1 Gunslinging 1 | . . . . . 1 . . . . . . . Exploded 3 | . . . . . 3 . . . . . . . Melee 1 | . . . . . . . . . . . . 1 Uniques/NPCs Destroyed . | . . . . . . . . . . . . . Combat | -11 -10 -10 -8 -8 -6 -5 -5 -5 -5 -5 -4 -3 -------- Run | Yrd Mat Sub Rec Scr Fac Fac Was Fac Upp Upp Fac Res Hostile Shots Fired 364 | . . 46 . . 127 . 4 . 13 . 44 130 Missed 131 | . . 19 . . 53 . . . 3 . 21 35 Hits 233 | . . 27 . . 74 . 4 . 10 . 23 95 Melee 6 | . . . . . 2 . 4 . . . . . Projectile 227 | . . 27 . . 72 . . . 10 . 23 95 Critical Strikes 15 | . . . . . 8 . . . . . 2 5 Damage Taken 4201 | . . 205 . . 1391 . 153 . 158 . 317 1977 Core 2063 | . . 35 . . 581 . 80 . 48 . 15 1304 Absorbed by Shields . | . . . . . . . . . . . . . Ignored by Resistances 38 | . . . . . 38 . . . . . . . Core Remaining (%) 80 | 100 . . . 86 31 . . . . 87 98 . Volleys Fired 63 | . . 7 . . 35 1 10 . . . 10 . Largest 4 | . . 2 . . 4 1 1 . . . 1 . Hottest 90 | . . 40 . . 75 7 90 . . . 47 . Shots Fired 176 | . . 14 . . 141 1 10 . . . 10 . Gun 155 | . . 14 . . 141 . . . . . . . Cannon 20 | . . . . . . . 10 . . . 10 . Launcher . | . . . . . . . . . . . . . Special 1 | . . . . . . 1 . . . . . . Kinetic 165 | . . 14 . . 141 . . . . . 10 . Thermal 10 | . . . . . . . 10 . . . . . Explosive . | . . . . . . . . . . . . . Electromagnetic . | . . . . . . . . . . . . . Robot Hit Streak 11 | . . 2 . . 11 . 2 . . . 7 . Robot Miss Streak 4 | . . 1 . . 4 . 2 . . . 1 . Penetration Max . | . . . . . . . . . . . . . Secondary Targets 2 | . . 1 . . 1 . . . . . . . Max Gunslinging Chain 1 | . . 1 . . 1 . . . . . . . Shots Hit Robots 121 | . . 7 . . 90 . 6 . . . 8 10 Core Hits 60 | . . 5 . . 46 . . . . . 3 6 Critical Kills 2 | . . . . . 1 . 1 . . . . . Critical Parts Destroyed 1 | . . . . . 1 . . . . . . . Critical Strikes 3 | . . . . . 2 . 1 . . . . . Meltdown 1 | . . . . . . . 1 . . . . . Destroy 2 | . . . . . 2 . . . . . . . Melee Attacks 13 | . . . . . . . . . . . . 13 Impact . | . . . . . . . . . . . . . Slashing 13 | . . . . . . . . . . . . 13 Piercing . | . . . . . . . . . . . . . Sneak Attacks . | . . . . . . . . . . . . . Combat Hostiles . | . . . . . . . . . . . . . Follow-up Attacks . | . . . . . . . . . . . . . Damage Inflicted 3819 | . . 76 . . 2755 . 220 . . . 351 417 Guns 1476 | . . 76 . . 1400 . . . . . . . Cannons 571 | . . . . . . . 220 . . . 351 . Explosions 1355 | . . . . . 1355 . . . . . . . Melee 406 | . . . . . . . . . . . . 406 Ramming 11 | . . . . . . . . . . . . 11 Kinetic 1827 | . . 76 . . 1400 . . . . . 351 . Thermal 220 | . . . . . . . 220 . . . . . Explosive 1355 | . . . . . 1355 . . . . . . . Electromagnetic . | . . . . . . . . . . . . . Impact . | . . . . . . . . . . . . . Slashing 406 | . . . . . . . . . . . . 406 Piercing . | . . . . . . . . . . . . . Highest Corruption 14 | . . . . . 2 . 14 14 14 14 1 5 Average Corruption 9 | . . . . . 1 . 5 14 14 14 1 3 Corruption Purged . | . . . . . . . . . . . . . Corruption Blocked . | . . . . . . . . . . . . . Effects 52 | . . . . . 3 . 3 8 28 6 1 3 Message Errors 7 | . . . . . . . . 1 4 1 . 1 Matter Fused 15 | . . . . . 1 . . 2 10 1 1 . Heat Flow Errors 10 | . . . . . . . 2 1 5 2 . . Energy Discharges 2 | . . . . . . . . . 1 . . 1 Data Loss (minor) 10 | . . . . . 1 . . 1 6 1 . 1 Data Loss (major) 4 | . . . . . . . . 2 1 1 . . Misfires 1 | . . . . . 1 . . . . . . . Alerts 2 | . . . . . . . 1 1 . . . . Misdirections 1 | . . . . . . . . . 1 . . . Overload Shots . | . . . . . . . . . . . . . Overflow Damage 113 | . . . . . 90 . . . . . 23 . Projectiles 23 | . . . . . . . . . . . 23 . Explosions 90 | . . . . . 90 . . . . . . . Melee . | . . . . . . . . . . . . . Knockbacks 5 | . . . . . . . . . . . 5 . Impact . | . . . . . . . . . . . . . Kinetic 5 | . . . . . . . . . . . 5 . Secondary . | . . . . . . . . . . . . . Self-Inflicted Damage 115 | . . . . . 111 . . . . . . 4 Shots 1 | . . . . . 1 . . . . . . . Rammed 4 | . . . . . . . . . . . . 4 Targets Rammed 4 | . . . . . . . . . . . . 4 Kicked . | . . . . . . . . . . . . . Crushed . | . . . . . . . . . . . . . Highest Temperature 232 | . . . . . 43 . 170 210 232 184 109 123 Average Temperature 40 | . . . . . 16 . 66 110 85 93 29 43 Received Heat Transfer 766 | . . 72 . . 234 . . . 18 . . 442 Siege Activations . | . . . . . . . . . . . . . Martial Activations . | . . . . . . . . . . . . . Shielding Activations . | . . . . . . . . . . . . . Robots Disrupted . | . . . . . . . . . . . . . Combat Hostiles . | . . . . . . . . . . . . . Robots Corrupted . | . . . . . . . . . . . . . Combat Hostiles . | . . . . . . . . . . . . . Parts Fried . | . . . . . . . . . . . . . Impact Corruptions . | . . . . . . . . . . . . . Robots Melted 1 | . . . . . . . 1 . . . . . Combat Hostiles 1 | . . . . . . . 1 . . . . . Parts Melted 1 | . . . . . . . 1 . . . . . Heat Transferred 350 | . . . . . . . 350 . . . . . Parts Sabotaged 2 | . . . . . 2 . . . . . . . Parts Stolen . | . . . . . . . . . . . . . Parts Stripped . | . . . . . . . . . . . . . Power Chain Reactions . | . . . . . . . . . . . . . Alert | -11 -10 -10 -8 -8 -6 -5 -5 -5 -5 -5 -4 -3 ------- Run | Yrd Mat Sub Rec Scr Fac Fac Was Fac Upp Upp Fac Res Maximum Alert Level 1 | . . . . . 1 . . . . . . . Low Security (%) 98 | 100 100 . 100 . 96 100 100 100 . . 100 100 Level 1 1 | . . . . . 3 . . . . . . . Level 2 . | . . . . . . . . . . . . . Level 3 . | . . . . . . . . . . . . . Level 4 . | . . . . . . . . . . . . . Level 5 . | . . . . . . . . . . . . . High Security . | . . . . . . . . . . . . . Max Security . | . . . . . . . . . . . . . Peak Influence 324 | . . . 2 . 324 152 17 . . . 138 105 Initial 152 | . . . . . . 152 17 . . . . 72 Average 23 | . . . . . 26 108 4 . . . 6 37 Influence Increases 973 | . . 60 2 . 507 9 4 . . . 176 215 Destroy 0b10 Robot/C 400 | . . 60 . . 240 . . . . . 60 40 Destroy 0b10 Robot/NC 30 | . . . . . 30 . . . . . . . Destroy Leader 72 | . . . . . 42 . . . . . 20 10 Successful Hack 16 | . . . 2 . 5 9 . . . . . . Disable Machine 135 | . . . . . 135 . . . . . . . Destroy Structure 50 | . . . . . 40 . 4 . . . 6 . Partial Spotted 30 | . . . . . . . . . . . 15 15 Lose Combat Pursuer 240 | . . . . . 15 . . . . . 75 150 Influence Decreases 878 | . . 60 2 . 195 270 55 . . . 38 258 Entered New Map 260 | . . . . . . 160 34 . . . . 66 Time Decay 444 | . . 60 2 . 85 110 17 . . . 38 132 Lost Part 174 | . . . . . 110 . 4 . . . . 60 Squads Dispatched 9 | . . . . . 6 . . . . . 2 1 Investigation 1 | . . . . . 1 . . . . . . . Extermination 3 | . . . . . 2 . . . . . 1 . Reinforcement 5 | . . . . . 3 . . . . . 1 1 Assault . | . . . . . . . . . . . . . Garrison . | . . . . . . . . . . . . . Intercept . | . . . . . . . . . . . . . Searches Triggered . | . . . . . . . . . . . . . Construction Impeded 1 | . . . . . 1 . . . . . . . Haulers Reinforced . | . . . . . . . . . . . . . Active Scanning Responses . | . . . . . . . . . . . . . Cargo Convoy Interrupts 1 | . . . . . 1 . . . . . . . Stealth | -11 -10 -10 -8 -8 -6 -5 -5 -5 -5 -5 -4 -3 --------- Run | Yrd Mat Sub Rec Scr Fac Fac Was Fac Upp Upp Fac Res Distress Signals 1 | . . . . . . . . . . . . 1 Communications Jammed . | . . . . . . . . . . . . . Distress Signals . | . . . . . . . . . . . . . Times Spotted 79 | . . 6 . . 29 . 6 1 7 . 12 18 Peak Tracking Total 11 | . . 6 . . 11 . 5 1 7 . 9 11 Tactical Retreats 6 | . . . . . 1 . . . . . 2 3 Traps | -11 -10 -10 -8 -8 -6 -5 -5 -5 -5 -5 -4 -3 ------- Run | Yrd Mat Sub Rec Scr Fac Fac Was Fac Upp Upp Fac Res Traps Triggered 1 | . . . . . . 1 . . . . . . Indirectly . | . . . . . . . . . . . . . Trap Hack Attempts . | . . . . . . . . . . . . . Triggered . | . . . . . . . . . . . . . Disarmed . | . . . . . . . . . . . . . Reprogrammed . | . . . . . . . . . . . . . Reused . | . . . . . . . . . . . . . Traps Extracted . | . . . . . . . . . . . . . Installed . | . . . . . . . . . . . . . Triggered . | . . . . . . . . . . . . . Machines | -11 -10 -10 -8 -8 -6 -5 -5 -5 -5 -5 -4 -3 ---------- Run | Yrd Mat Sub Rec Scr Fac Fac Was Fac Upp Upp Fac Res Machines Disabled 9 | . . . . . 9 . . . . . . . Max in Single Turn 6 | . . . . . 6 . . . . . . . Machines Repaired . | . . . . . . . . . . . . . Machines Dismantled . | . . . . . . . . . . . . . Machines Sabotaged . | . . . . . . . . . . . . . Overloaded Fab Kills . | . . . . . . . . . . . . . Hacking | -11 -10 -10 -8 -8 -6 -5 -5 -5 -5 -5 -4 -3 --------- Run | Yrd Mat Sub Rec Scr Fac Fac Was Fac Upp Upp Fac Res Machines Accessed 10 | . . . 4 3 1 2 . . . . . . Terminals 4 | . . . 1 . 1 2 . . . . . . Fabricators . | . . . . . . . . . . . . . Repair Stations . | . . . . . . . . . . . . . Recycling Units 2 | . . . 2 . . . . . . . . . Scanalyzers . | . . . . . . . . . . . . . Garrison Access . | . . . . . . . . . . . . . Total Hacks 25 | . . . 7 12 3 3 . . . . . . Successful 21 | . . . 6 12 1 2 . . . . . . Failed 4 | . . . 1 . 2 1 . . . . . . Catastrophic . | . . . . . . . . . . . . . Database Lockouts . | . . . . . . . . . . . . . Manual 5 | . . . 5 . . . . . . . . . Terminals 9 | . . . 3 . 3 3 . . . . . . Fabricators . | . . . . . . . . . . . . . Repair Stations . | . . . . . . . . . . . . . Recycling Units 3 | . . . 3 . . . . . . . . . Scanalyzers . | . . . . . . . . . . . . . Garrison Access . | . . . . . . . . . . . . . Terminal Hacks 18 | . . . 3 12 1 2 . . . . . . Record 15 | . . . 3 11 . 1 . . . . . . Open DSF 2 | . . . . . 1 1 . . . . . . Proto ID Catalog 1 | . . . . 1 . . . . . . . . Fabricator Hacks . | . . . . . . . . . . . . . Repair Station Hacks . | . . . . . . . . . . . . . Recycling Unit Hacks . | . . . . . . . . . . . . . Scanalyzer . | . . . . . . . . . . . . . Garrison Access Hacks . | . . . . . . . . . . . . . Unauthorized Hacks . | . . . . . . . . . . . . . Terminals . | . . . . . . . . . . . . . Fabricators . | . . . . . . . . . . . . . Repair Stations . | . . . . . . . . . . . . . Recycling Units . | . . . . . . . . . . . . . Scanalyzers . | . . . . . . . . . . . . . Garrison Access . | . . . . . . . . . . . . . Data Cores Recovered . | . . . . . . . . . . . . . Used . | . . . . . . . . . . . . . Hacking Detections 2 | . . . . . 1 1 . . . . . . Full Trace Events 1 | . . . . . 1 . . . . . . . Feedback Events . | . . . . . . . . . . . . . Feedback Blocked . | . . . . . . . . . . . . . Robot Schematics Acquired . | . . . . . . . . . . . . . Robots Built . | . . . . . . . . . . . . . Authchips . | . . . . . . . . . . . . . Time . | . . . . . . . . . . . . . Total Robot Build Rating . | . . . . . . . . . . . . . Part Schematics Acquired . | . . . . . . . . . . . . . Parts Built . | . . . . . . . . . . . . . Authchips . | . . . . . . . . . . . . . Time . | . . . . . . . . . . . . . Total Part Build Rating . | . . . . . . . . . . . . . Parts Repaired . | . . . . . . . . . . . . . Time . | . . . . . . . . . . . . . Parts Recycled . | . . . . . . . . . . . . . Recycled Matter . | . . . . . . . . . . . . . Retrieved Matter . | . . . . . . . . . . . . . Retrieved Components . | . . . . . . . . . . . . . Parts Scanalyzed . | . . . . . . . . . . . . . Part Schematics Acquired . | . . . . . . . . . . . . . Parts Damaged . | . . . . . . . . . . . . . Bothacking | -11 -10 -10 -8 -8 -6 -5 -5 -5 -5 -5 -4 -3 ------------ Run | Yrd Mat Sub Rec Scr Fac Fac Was Fac Upp Upp Fac Res Used RIF Installer . | . . . . . . . . . . . . . Robots Hacked . | . . . . . . . . . . . . . Non-combat . | . . . . . . . . . . . . . Combat . | . . . . . . . . . . . . . Robot Hacks Applied . | . . . . . . . . . . . . . Relay Couplers Released . | . . . . . . . . . . . . . Fabnet Peak Effective % . | . . . . . . . . . . . . . Robots Rewired . | . . . . . . . . . . . . . Allies Hacked . | . . . . . . . . . . . . . Hacks Repelled . | . . . . . . . . . . . . . Allies | -11 -10 -10 -8 -8 -6 -5 -5 -5 -5 -5 -4 -3 -------- Run | Yrd Mat Sub Rec Scr Fac Fac Was Fac Upp Upp Fac Res Total Allies . | . . . . . . . . . . . . . Largest Group . | . . . . . . . . . . . . . Highest-Rated Group . | . . . . . . . . . . . . . Highest-Rated Ally . | . . . . . . . . . . . . . Total Orders . | . . . . . . . . . . . . . Ally Attacks . | . . . . . . . . . . . . . Total Damage . | . . . . . . . . . . . . . Kills . | . . . . . . . . . . . . . Allies Corrupted . | . . . . . . . . . . . . . Allies Melted . | . . . . . . . . . . . . . Intel | -11 -10 -10 -8 -8 -6 -5 -5 -5 -5 -5 -4 -3 ------- Run | Yrd Mat Sub Rec Scr Fac Fac Was Fac Upp Upp Fac Res Active Infowar (turns) 817 | . . . . . . . . . . 102 515 200 IFF 817 | . . . . . . . . . . 102 515 200 Robot Analysis Total . | . . . . . . . . . . . . . Derelict Logs Recovered 3 | . . 1 . . . . . . 2 . . . Drone Launches . | . . . . . . . . . . . . . Drone Recoveries . | . . . . . . . . . . . . . Exploration | -11 -10 -10 -8 -8 -6 -5 -5 -5 -5 -5 -4 -3 ------------- Run | Yrd Mat Sub Rec Scr Fac Fac Was Fac Upp Upp Fac Res Turns Passed 4913 | 63 259 181 123 1023 1148 223 117 183 635 122 515 321 Spaces Moved 5281 | 43 43 75 275 1546 842 241 142 235 635 108 615 481 Core 793 | 3 . . . . 80 229 112 175 2 . 3 189 Treads . | . . . . . . . . . . . . . Legs 90 | 40 6 . . . 2 12 30 . . . . . Wheels . | . . . . . . . . . . . . . Hover 1676 | . . . . . . . . 31 633 108 612 292 Flight 2722 | . 37 75 275 1546 760 . . 29 . . . . Fastest Speed 31 | 50 107 37 37 37 31 50 50 40 50 110 35 33 Average Speed 63 | 115 110 94 37 62 33 88 66 72 95 110 65 48 Slowest Speed 250 | 120 190 177 37 107 120 120 190 200 110 110 250 150 Overloaded Moves . | . . . . . . . . . . . . . Propulsion Burnouts . | . . . . . . . . . . . . . Robots Hopped 1 | . . . . . 1 . . . . . . . Potential Cave-ins . | . . . . . . . . . . . . . Cave-ins Triggered . | . . . . . . . . . . . . . Exploration Rate (%) 31 | 5 11 4 56 87 21 9 92 6 71 17 15 20 Regions Visited 12 Branch Regions 5 Pre-discovered Areas . | . . . . . . . . . . . . . Known Exits Taken 1 | . . . . . . . . . 1 . . . Unknown Exits Taken 9 | 1 1 1 1 1 1 . . 1 . 1 1 . Scrap Searched 5 | . . . . 4 . . . . . 1 . . Spaces Dug . | . . . . . . . . . . . . . Terrain Destroyed 45 | . . . . . 39 . 3 . . . 3 . Melee . | . . . . . . . . . . . . . Projectile 6 | . . . . . . . 3 . . . 3 . AOE 39 | . . . . . 39 . . . . . . . Terrain Rammed . | . . . . . . . . . . . . . Walls Destroyed . | . . . . . . . . . . . . . Machines Disabled . | . . . . . . . . . . . . . Actions | -11 -10 -10 -8 -8 -6 -5 -5 -5 -5 -5 -4 -3 --------- Run | Yrd Mat Sub Rec Scr Fac Fac Was Fac Upp Upp Fac Res Total 6695 | 54 254 170 295 1604 1627 250 153 245 662 110 716 555 Wait 1204 | . 205 86 20 50 741 1 . . 3 . 71 27 Move 5268 | 42 42 74 274 1545 839 241 141 234 634 107 614 481 Hop 1 | . . . . . 1 . . . . . . . Pick Up 24 | 2 2 . 1 2 4 . . . 3 2 3 5 Fast Attach 41 | 6 . 1 . 2 3 5 1 7 3 1 8 4 Attach 17 | 2 1 . . . 4 . 1 . 2 . 1 6 Detach 15 | 2 1 1 . . . 1 . 2 . . 3 5 Swap 4 | . 2 . . 1 . . . . . . 1 . Drop 26 | . 1 1 . 4 . 1 . 2 2 . 5 10 Fire 63 | . . 7 . . 35 1 10 . . . 10 . Melee 13 | . . . . . . . . . . . . 13 Ram 4 | . . . . . . . . . . . . 4 Kick . | . . . . . . . . . . . . . Crush . | . . . . . . . . . . . . . Escape Stasis . | . . . . . . . . . . . . . Rewire 15 | . . . . . . . . . 15 . . . Trap . | . . . . . . . . . . . . . Miscellaneous . | . . . . . . . . . . . . . Route ------- -11/Scrapyard -10/Materials -10/Subcaves -8/Recycling -8/Scraptown (discovered 2 exits: *Fac x2) -6/Factory -5/Factory -5/Waste -5/Factory -5/Upper Caves -5/Upper Caves -4/Factory -3/Research History --------- Turn | Location | Event 26 | -11/Scrapyard | Discovered new exit (range 15) 64 | -11/Scrapyard | Entered Materials 294 | -10/Materials | Discovered new exit (range 8) 307 | -10/Materials | Build established: Mutant 323 | -10/Materials | Entered Subcaves 324 | -10/Subcaves | Discovered new exit (range 16) 493 | -10/Subcaves | Shifting Twisted Machinery released Sub. Beam Cannon 504 | -10/Subcaves | Entered Recycling 612 | -8/Recycling | Scanned before Scraplab entrance 621 | -8/Recycling | Entered Scraplab 626 | -8/Recycling | Discovered new exit (range 3) 627 | -8/Recycling | Entered Scraptown 741 | -8/Scraptown | Discovered new exit (range 5) 769 | -8/Scraptown | Visited Supply Room 778 | -8/Scraptown | Visited CPS Storage 799 | -8/Scraptown | Visited Fellowship of the Rings 835 | -8/Scraptown | Visited SPCMW 853 | -8/Scraptown | Visited IN-MT5's Study 917 | -8/Scraptown | Visited Cyclists 926 | -8/Scraptown | Visited UFD Registry 926 | -8/Scraptown | Registered with UFD as "Flakhacker" 940 | -8/Scraptown | Visited Scrapoid Research Area 954 | -8/Scraptown | Visited Science Guys 972 | -8/Scraptown | Visited Derelict Rescue Squad 975 | -8/Scraptown | Found DRS Beacon 987 | -8/Scraptown | Visited DA-N13 Charitable Foundation 991 | -8/Scraptown | Found DCF Scrap (27 items) 1020 | -8/Scraptown | Visited A0-MCA Data Center 1031 | -8/Scraptown | Given a B rating by A0-MCA 1035 | -8/Scraptown | Found A0-MCA's Component Scanner 1067 | -8/Scraptown | Visited Scrapoid Pod Storage 1089 | -8/Scraptown | Visited Junk Cannon Lab 1304 | -8/Scraptown | Visited Chapter 10 1369 | -8/Scraptown | Visited Scrap Suit Storage 1577 | -8/Scraptown | Met Optimus 1577 | -8/Scraptown | Accepted into 0bPrime 1647 | -8/Scraptown | Discovered new exit (range 3) 1650 | -8/Scraptown | Entered Factory 1650 | -6/Factory | Evolved 8 slots: Power x2, Propulsion x2, Utility x2, Weapon x2 1961 | -6/Factory | Build established: Sprinter 2749 | -6/Factory | Cargo convoy interrupted 2759 | -6/Factory | Core integrity fell below 50% 2788 | -6/Factory | Lost 11 parts (1p5n1u4w) 2795 | -6/Factory | Discovered new exit (range 6) 2798 | -6/Factory | Entered another Factory area 2798 | -5/Factory | Evolved 2 slots: Power x1, Propulsion x1 2874 | -5/Factory | Identified exit to DSF 3021 | -5/Factory | Sucked down chute 3021 | -5/Factory | Entered Waste 3030 | -5/Waste | Spotted C-40 Crusher 3036 | -5/Waste | EMP discharged 3039 | -5/Waste | Spotted C-40 Crusher 3046 | -5/Waste | Build established: Mutant 3049 | -5/Waste | Destroyed C-40 Crusher 3054 | -5/Waste | Spotted C-40 Crusher 3063 | -5/Waste | Spotted C-40 Crusher 3070 | -5/Waste | Spotted C-40 Crusher 3075 | -5/Waste | Crushed by Compactor (1 part destroyed, 1 dropped) 3078 | -5/Waste | Crushed by Compactor (1 part destroyed, 1 dropped) 3078 | -5/Waste | Spotted C-40 Crusher 3081 | -5/Waste | Crushed by Compactor (1 part destroyed, 1 dropped) 3112 | -5/Waste | Lost 3 parts (1n2w) 3133 | -5/Waste | Discovered new exit (range 11) 3136 | -5/Waste | EMP discharged 3136 | -5/Waste | System corruption reached 10% 3138 | -5/Waste | Entered Factory 3316 | -5/Factory | Discovered new exit (range 8) 3321 | -5/Factory | Entered Upper Caves 3334 | -5/Upper Caves | Identified exit to Upper Caves 3458 | -5/Upper Caves | Encountered a Warlord checkpoint 3483 | -5/Upper Caves | Learned Factory terminal intel 3944 | -5/Upper Caves | Attracted the attention of an 0b10 base 3956 | -5/Upper Caves | Entered another Upper Caves area 3997 | -5/Upper Caves | Discovered new exit (range 4) 4078 | -5/Upper Caves | Entered Factory 4078 | -4/Factory | Evolved 2 slots: Propulsion x1, Utility x1 4079 | -4/Factory | Loaded intel: 28 terminal locations 4579 | -4/Factory | Discovered new exit (range 10) 4593 | -4/Factory | Entered Research 4593 | -3/Research | Evolved 2 slots: Propulsion x1, Utility x1 4813 | -3/Research | Core integrity fell below 50% 4849 | -3/Research | Lost 13 parts (1p4n6u2w) 4859 | -3/Research | Core integrity fell below 20% 4914 | -3/Research | Destroyed by P-80 Master with Gamma Rifle Last Messages --------------- C-30 ARC bursts open, deploying its payload. H-77 Assassin unfolds itself. K-01 Serf collects debris. Penetrated by Slug. Slug penetrates Vacuum Chamber. K-01 Serf collects debris. ALERT: Hostiles spotted, dispatching reinforcements to Terminal R006. Slammed into K-01 Serf. Destabilizing: Core damaged (-13). Slammed into R-10 Processor. Slug penetrates K-01 Serf. K-01 Serf destroyed. K-01 Serf collects debris. System corrupted: Component data lost. W-44 Eye sends out distress signal. Door malfunctions. RG5F,XC5,BW#Z,RMQOQW=HELMSFH%YT&LR L#BC Slammed into P-80 Master. System corrupted: Energy discharge (-32). Map ----- +----------------------------------------------------+ | ????# #???????" #??????????????????????????????? | | ????# ##????""" #??????????????????????????????? | | ????# ## """"" #????????? ???????????????????? | | ##### ## #???????? #??????????????????? | | # #???????? #??????????????????? | | # """"" #???????? #??????????????????? | | # """"" #???????? #??????????????????? | | # """"" #???????? #??????????????????? | | ### # #???????? ???????????????????? | | ??# # #???????? ????????????????????? | | ??# #####/##############+##########???????????? | | ??# ??????????? | | ??# ??????????? | | ??# ?????????? | | ??# ??????????? | | ??####/#############+### #####????????????????? | | ???? ????????? # #????????????????????? | | ?? ????? # #????????????????????? | | ?# #?? """ # #????????????????????? | | ?# === #?# """" # #????????????????????? | | ?# == #?# """" # #????????????????????? | | ? == #?# """ # #????????????????????? | | ## #?# # #????????????????????? | | ?# #?# ???? # #????????????????????? | | ?###########???????##+## R ######???????????????? | | ????????????????????# @ +???????????????? | | ?????################ #???????????????? | | ?? p +???????????????? | | ?? ######???????????????? | | ????????#################+#+#????????????????????? | | ???????????????????????? ????????????????????? | | ???????????????????????? ????????????????????? | | ???????????????????????" !]???????????????????? | | ???????????????????????" ]]???????????????????? | | ??????????????????????"" ]= ??????????????????? | | ?????????????????????? ??????????????????? | | ?????????????????????? ?????????????????? | | ?????????????????????? ?????????????????? | | ?????????????????????? = ????????????????? | | ?????????????????????? ????????????????? | | ??????????????????????###########????????????????? | | | | | | | | | | | | | | | | | | | +----------------------------------------------------+ Best States ------------- Heat Dissipation 71 Energy Generation 85 Energy Capacity 325 Matter Stores 300 Matter Capacity 300 Sight Range 16 Terrain Scan Density 210 Power Amplification 90 Armor Coverage 800 Resistance: KI 25 Evasion (%) 70 Defensive Hacking 10 Item Schematics ----------------- None Robot Schematics ------------------ None Fabricated ------------ Nothing Repaired ---------- Nothing Alien Tech Used ----------------- None Achievements -------------- More Power To You Streaker Challenges ------------ None Game ------ Seed PointyThermicMatrix Manual? 0 Play Time 01:04:32 Cumulative 33.2 hours Start 2025.07.25 @ 12:36:15 End 2025.07.25 @ 13:37:40 Sessions 1 Manual Loads 0 Difficulty Rogue Special Mode None Game No. 57 Rogue 57 Adventurer 0 Explorer 0 Win Type - Total 0 Types 0/0/0/0/0/0/0/0/0/0 Lore% 31 Gallery% 26 Achievement% 28 Wizard Run 0 Options --------- Layout 1 ASCII 0 Keyboard 1 Movement Numpad Keybinds 0 Fullscreen 1 Font 24/Smallcaps Map View 50x40 Zoom Use 0% Tactical HUD 0 Map Filters NONE Filters NONE Steam 1 RUN: b9865739-18a2-431e-9b1d-fe914917d514